bitfinex/quotes_BTCUSD_20251113
["timestamp","ask_amount","ask_price","bid_price","bid_amount"]
[1763027864599,0.51891559,102830.0,102820.0,0.19451468]
[1763027864819,0.54618191,102830.0,102820.0,0.25695468]
[1763027865198,0.54618191,102830.0,102820.0,0.23695468]
[1763027865421,0.54618191,102830.0,102820.0,0.25695468]
[1763027865839,0.54618191,102830.0,102790.0,0.00014001]
[1763027866027,0.19455252,102800.0,102790.0,0.00014001]
[1763027866249,0.70581756,102800.0,102790.0,0.00014001]
[1763027866426,0.45018504,102800.0,102790.0,0.04258001]
[1763027866968,0.70581756,102800.0,102790.0,0.04258001]
[1763027867406,0.70581756,102800.0,102790.0,0.00014001]
[1763027867610,0.70581756,102800.0,102790.0,0.04258001]
[1763027867989,0.45018504,102800.0,102790.0,0.04258001]
[1763027868236,0.70581756,102800.0,102790.0,0.04258001]
[1763027868441,0.70581756,102800.0,102790.0,0.00014001]
[1763027868646,0.70581756,102800.0,102790.0,0.04454001]
[1763027868993,0.72401048,102800.0,102790.0,0.04254001]
[1763027871488,0.46837796,102800.0,102790.0,0.04254001]
[1763027872480,0.21274544,102800.0,102790.0,0.04254001]
[1763027872679,0.72401048,102800.0,102790.0,0.04254001]
[1763027872885,0.21274544,102800.0,102790.0,0.04254001]
[1763027873110,0.46837796,102800.0,102790.0,0.04254001]
[1763027873493,0.21274544,102800.0,102790.0,0.04254001]
[1763027873729,0.46837796,102800.0,102790.0,0.04254001]
[1763027874078,0.21274544,102800.0,102790.0,0.23711146]
[1763027874283,0.46837796,102800.0,102790.0,0.23711146]
[1763027875254,0.4683936,102800.0,102790.0,0.23711146]
[1763027875587,0.4683936,102800.0,102790.0,0.04254001]
[1763027876496,0.45018504,102800.0,102790.0,0.04254001]
[1763027876699,0.4683955,102800.0,102790.0,0.04254001]
[1763027876922,0.45989006,102820.0,102790.0,0.28845146]
[1763027877112,0.24273884,102810.0,102800.0,0.0163]
[1763027877288,0.26094779,102810.0,102800.0,0.0163]
[1763027877477,0.26094779,102810.0,102800.0,0.21085252]
[1763027877871,0.01820895,102810.0,102800.0,0.23387252]
[1763027878556,0.45989006,102820.0,102800.0,0.23387252]
[1763027878711,0.48720537,102820.0,102810.0,0.07072]
[1763027879095,0.48720537,102820.0,102810.0,0.2652536]
[1763027879313,0.22182999,102820.0,102810.0,0.2652536]
[1763027879761,0.01821021,102820.0,102810.0,0.2885236]
[1763027879979,0.21272489,102820.0,102810.0,0.2885236]
[1763027880524,0.21272489,102820.0,102810.0,0.07072]
[1763027880801,0.46835741,102820.0,102810.0,0.2652536]
[1763027881051,0.46935741,102820.0,102810.0,0.2652536]
[1763027881291,0.46835741,102820.0,102810.0,0.2885236]
[1763027881776,0.46935741,102820.0,102810.0,0.2885236]
[1763027882218,0.46935741,102820.0,102810.0,0.09399]
[1763027882422,0.4511472,102820.0,102810.0,0.09399]
[1763027882629,0.4511472,102820.0,102810.0,0.2885236]
[1763027883836,0.001,102820.0,102810.0,0.2885236]
[1763027884683,0.20532926,102830.0,102820.0,0.19451468]
[1763027884684,0.46096178,102830.0,102820.0,0.19451468]
[1763027884899,0.47917221,102830.0,102820.0,0.21026468]
[1763027885135,0.02904043,102830.0,102820.0,0.23332468]
[1763027885362,0.25563252,102840.0,102820.0,0.23332468]
[1763027885572,0.02730936,102840.0,102830.0,0.28724576]
[1763027885953,0.01820624,102840.0,102830.0,0.28724576]
[1763027887010,0.21268309,102840.0,102830.0,0.28724576]
[1763027887344,0.19447685,102840.0,102830.0,0.28724576]
[1763027887696,0.19447685,102840.0,102830.0,0.26418576]
[1763027887836,0.45210937,102840.0,102830.0,0.26418576]
[1763027888511,0.45210937,102840.0,102830.0,0.28724576]
[1763027889314,0.19647685,102840.0,102830.0,0.28724576]
[1763027889528,0.002,102840.0,102830.0,0.28724576]
[1763027890736,0.1947029,102850.0,102840.0,0.19447685]
[1763027890943,0.21288439,102850.0,102840.0,0.23349685]
[1763027891907,0.46951691,102850.0,102840.0,0.23349685]
[1763027892401,0.46951691,102850.0,102840.0,0.01596]
[1763027892604,0.46951691,102850.0,102830.0,0.27128312]
[1763027892982,0.46951691,102850.0,102840.0,0.21043685]
[1763027893190,0.46951691,102850.0,102840.0,0.23349685]
[1763027893411,0.46851691,102850.0,102840.0,0.23349685]
[1763027893937,0.45033542,102850.0,102840.0,0.23349685]
[1763027894572,0.1947029,102850.0,102840.0,0.23349685]
[1763027894772,0.45033542,102850.0,102840.0,0.23349685]
[1763027895176,0.45133542,102850.0,102840.0,0.21043685]
[1763027895937,0.45133542,102850.0,102840.0,0.22176685]
[1763027896144,0.45133542,102850.0,102840.0,0.24176685]
[1763027896946,0.64525268,102850.0,102840.0,0.24176685]
[1763027898573,0.64525268,102850.0,102840.0,0.04729]
[1763027898936,0.64525268,102850.0,102840.0,0.05035]
[1763027899142,0.64525268,102850.0,102840.0,0.07035]
[1763027899618,0.64525268,102850.0,102840.0,0.26482685]
[1763027900025,0.64525268,102850.0,102840.0,0.24482685]
[1763027900226,0.00124496,102850.0,102840.0,0.24482685]
[1763027900428,0.22601985,102850.0,102840.0,0.26482685]
[1763027900708,0.00124496,102850.0,102840.0,0.26482685]
[1763027900884,0.22601985,102850.0,102840.0,0.26482685]
[1763027901113,0.42047779,102850.0,102840.0,0.26482685]
[1763027902035,0.22601985,102850.0,102840.0,0.26482685]
[1763027902404,0.42047779,102850.0,102840.0,0.26482685]
[1763027902643,0.02918456,102870.0,102840.0,0.81260174]
[1763027902857,0.42909628,102880.0,102860.0,0.22172904]
[1763027903064,0.42956318,102880.0,102870.0,0.05373]
[1763027903302,0.42956318,102880.0,102870.0,0.07373]
[1763027903524,0.41984303,102880.0,102870.0,0.24815014]
[1763027903726,0.22544179,102880.0,102870.0,0.26815014]
[1763027903932,0.27364618,102880.0,102870.0,0.26815014]
[1763027904341,0.49842107,102880.0,102870.0,0.26815014]
[1763027904753,0.69282231,102880.0,102870.0,0.26815014]
[1763027904957,0.24307253,102880.0,102870.0,0.26815014]
[1763027905803,0.24407253,102880.0,102870.0,0.26815014]
[1763027906412,0.04967129,102880.0,102870.0,0.26815014]
[1763027906647,0.0014669,102880.0,102870.0,0.71506728]
[1763027906917,0.42936404,102880.0,102870.0,0.0424]
[1763027907242,0.19586814,102880.0,102870.0,0.0424]
[1763027907445,0.19486814,102880.0,102870.0,0.0424]
[1763027907685,0.20430351,102890.0,102870.0,0.23682014]
[1763027907876,0.04820439,102880.0,102870.0,0.25682014]
[1763027908287,0.04820439,102880.0,102870.0,0.26815014]
[1763027908496,0.04820439,102880.0,102870.0,0.24171014]
[1763027908690,0.04920439,102880.0,102870.0,0.28411014]
[1763027908900,0.24360563,102880.0,102870.0,0.28411014]
[1763027909043,0.24360563,102880.0,102870.0,0.26411014]
[1763027909248,0.47610153,102880.0,102870.0,0.28411014]
[1763027909452,0.47610153,102880.0,102870.0,0.26411014]
[1763027909662,0.47610153,102880.0,102870.0,0.28411014]
[1763027910719,0.24260563,102880.0,102870.0,0.28411014]
[1763027910925,0.04820439,102880.0,102870.0,0.26411014]
[1763027911124,0.04820439,102880.0,102870.0,0.28411014]
[1763027911695,0.26072937,102880.0,102870.0,0.06969]
[1763027911903,0.26072937,102880.0,102870.0,0.26411014]
[1763027912111,0.26072937,102880.0,102870.0,0.28411014]
[1763027912567,0.68862651,102880.0,102870.0,0.28411014]
[1763027912797,0.68862651,102880.0,102870.0,0.26411014]
[1763027913024,0.49422527,102880.0,102870.0,0.28411014]
[1763027913254,0.06632813,102880.0,102870.0,0.26411014]
[1763027913482,0.01812374,102880.0,102870.0,0.30808014]
[1763027913723,0.6886325,102880.0,102870.0,0.01133]
[1763027913936,0.26146998,102880.0,102870.0,0.24815014]
[1763027914146,0.68936712,102880.0,102870.0,0.25682014]
[1763027914351,0.68936712,102880.0,102870.0,0.23682014]
[1763027914561,0.68936712,102880.0,102870.0,0.25682014]
[1763027915395,0.68936712,102880.0,102870.0,0.23682014]
[1763027915599,0.68936712,102880.0,102870.0,0.25682014]
[1763027916031,0.26146998,102880.0,102870.0,0.23682014]
[1763027916250,0.26146998,102880.0,102870.0,0.25682014]
[1763027918453,0.27054459,102880.0,102870.0,0.25682014]
[1763027920780,0.27054459,102880.0,102850.0,0.23946348]
[1763027920781,0.19443475,102870.0,102850.0,0.23946348]
[1763027921017,0.64046162,102870.0,102860.0,0.23679904]
[1763027921224,0.64046162,102870.0,102860.0,0.25679904]
[1763027921429,0.64095141,102870.0,102860.0,0.25679904]
[1763027921639,0.21305427,102870.0,102860.0,0.25679904]
[1763027922060,0.21305427,102870.0,102860.0,0.04236]
[1763027922302,0.21305427,102870.0,102860.0,0.06236]
[1763027922511,0.22214281,102870.0,102860.0,0.06236]
[1763027923142,0.22214281,102870.0,102860.0,0.23679904]
[1763027923946,0.22214281,102870.0,102860.0,0.25679904]
[1763027924408,0.65003995,102870.0,102850.0,0.21549348]
[1763027924615,0.65003995,102870.0,102840.0,0.56250069]
[1763027924616,0.19445794,102850.0,102840.0,0.56250069]
[1763027924842,0.67054057,102860.0,102840.0,0.60089069]
[1763027925056,0.67054057,102860.0,102840.0,0.58089069]
[1763027925273,0.67054057,102860.0,102840.0,0.60089069]
[1763027925496,0.67054057,102860.0,102850.0,0.02]
[1763027925700,0.67054057,102860.0,102850.0,0.001]
[1763027925911,0.67054057,102860.0,102850.0,0.19592484]
[1763027926330,0.24264343,102860.0,102850.0,0.19492484]
[1763027926524,0.24264343,102860.0,102850.0,0.19592484]
[1763027926736,0.24264343,102860.0,102850.0,0.21592484]
[1763027926959,0.54229437,102860.0,102850.0,0.0204669]
[1763027927361,0.54229437,102860.0,102850.0,0.0004669]
[1763027927566,0.54229437,102860.0,102850.0,0.21492484]
[1763027927773,0.54229437,102860.0,102850.0,0.0004669]
[1763027928197,0.54229437,102860.0,102850.0,0.19492484]
[1763027928424,0.20415575,102870.0,102850.0,0.24255484]
[1763027928631,0.52200763,102870.0,102860.0,0.25679904]
[1763027928893,0.5311081,102870.0,102860.0,0.06236]
[1763027929104,0.52200763,102870.0,102860.0,0.06236]
[1763027929309,0.52200763,102870.0,102860.0,0.25679904]
[1763027929488,0.32757288,102870.0,102860.0,0.25679904]
[1763027929704,0.01820094,102870.0,102860.0,0.24901904]
[1763027929867,0.01820094,102870.0,102860.0,0.30839904]
[1763027930329,0.01869073,102870.0,102860.0,0.30839904]
[1763027931283,0.01969073,102870.0,102860.0,0.30839904]
[1763027931587,0.01969073,102870.0,102860.0,0.30843904]
[1763027931805,0.01969073,102870.0,102860.0,0.28843904]
[1763027932148,0.01969073,102870.0,102860.0,0.30843904]
[1763027932361,0.21411087,102870.0,102860.0,0.28446904]
[1763027933521,0.51376181,102870.0,102860.0,0.0424]
[1763027933732,0.51376181,102870.0,102860.0,0.23683904]
[1763027933972,0.51376181,102870.0,102860.0,4e-05]
[1763027934183,0.51376181,102870.0,102860.0,0.0424]
[1763027934405,0.51376181,102870.0,102860.0,4e-05]
[1763027934611,0.51376181,102870.0,102860.0,0.0424]
[1763027935489,0.51376181,102870.0,102860.0,0.0624]
[1763027935700,0.51376181,102870.0,102860.0,0.0424]
[1763027938790,0.51376181,102870.0,102860.0,4e-05]
[1763027941117,0.51376181,102870.0,102860.0,0.02004]
[1763027941527,0.51376181,102870.0,102860.0,4e-05]
[1763027941741,0.25647087,102870.0,102860.0,4e-05]
[1763027941945,0.55612181,102870.0,102860.0,0.02004]
[1763027942153,0.51376181,102870.0,102860.0,4e-05]
[1763027942365,0.30114073,102870.0,102860.0,0.21447904]
[1763027942575,0.49556087,102870.0,102860.0,0.21447904]
[1763027943018,0.19590993,102870.0,102860.0,0.21447904]
[1763027943217,0.49556087,102870.0,102860.0,0.21447904]
[1763027943575,0.30114073,102870.0,102860.0,0.21447904]
[1763027943984,0.00148979,102870.0,102860.0,0.26621904]
[1763027945333,0.19590993,102870.0,102860.0,0.24621904]
[1763027945563,0.19590993,102870.0,102860.0,0.24203904]
[1763027946768,0.00148979,102870.0,102860.0,0.24203904]
[1763027947727,0.19490993,102870.0,102860.0,0.02004]
[1763027947946,0.49456087,102870.0,102860.0,4e-05]
[1763027948639,0.49456087,102870.0,102860.0,0.02004]
[1763027948785,0.49456087,102870.0,102860.0,4e-05]
[1763027949990,0.49556087,102870.0,102860.0,4e-05]
[1763027952854,0.49556087,102870.0,102860.0,0.02004]
[1763027953899,0.49556087,102870.0,102860.0,4e-05]
[1763027954741,0.49556087,102870.0,102860.0,0.02004]
[1763027956240,0.49556087,102870.0,102860.0,4e-05]
[1763027957512,0.49556087,102870.0,102860.0,0.02004]
[1763027957933,0.49556087,102870.0,102860.0,4e-05]
[1763027958145,0.49556087,102870.0,102860.0,0.02004]
[1763027958350,0.49556087,102870.0,102860.0,4e-05]
[1763027958770,0.49556087,102870.0,102860.0,0.02004]
[1763027958955,0.51375513,102870.0,102860.0,0.02004]
[1763027960545,0.51375513,102870.0,102860.0,4e-05]
[1763027963824,0.51375513,102870.0,102860.0,0.02004]
[1763027964026,0.51375513,102870.0,102860.0,4e-05]
[1763027964385,0.51375513,102870.0,102860.0,0.02004]
[1763027964630,0.51375513,102870.0,102860.0,4e-05]
[1763027965040,0.8882731,102870.0,102860.0,4e-05]
[1763027965649,1.56244201,102870.0,102860.0,4e-05]
[1763027965828,0.91745738,102870.0,102860.0,4e-05]
[1763027967976,1.59162629,102870.0,102860.0,4e-05]
[1763027968857,0.91745738,102870.0,102860.0,4e-05]
[1763027973533,1.59162629,102870.0,102860.0,4e-05]
[1763027973967,1.73144451,102870.0,102860.0,4e-05]
[1763027974182,2.05444451,102870.0,102860.0,4e-05]
[1763027979553,0.20420069,102840.0,102800.0,0.03489]
[1763027979916,0.20420069,102840.0,102810.0,0.05489]
[1763027979917,0.24271907,102820.0,102810.0,0.05489]
[1763027980113,0.42896074,102830.0,102810.0,0.47074657]
[1763027980255,0.19451468,102820.0,102810.0,0.05489]
[1763027980458,0.65368371,102830.0,102810.0,0.2294236]
[1763027980658,0.65368371,102830.0,102820.0,0.24272468]
[1763027980883,0.42896074,102830.0,102820.0,0.04821]
[1763027981232,0.20423777,102830.0,102820.0,0.04821]
[1763027981439,0.42896074,102830.0,102820.0,0.22272468]
[1763027981656,0.65368371,102830.0,102820.0,0.02821]
[1763027982321,0.42896074,102830.0,102820.0,0.24600468]
[1763027982527,0.42896074,102830.0,102820.0,0.26600468]
[1763027982730,0.65368371,102830.0,102820.0,0.26600468]
[1763027982939,0.65368371,102830.0,102820.0,0.2934155]
[1763027983143,0.65368371,102830.0,102820.0,0.26600468]
[1763027984433,0.82931946,102840.0,102830.0,0.19449576]
[1763027984434,0.28159649,102840.0,102830.0,0.19449576]
[1763027984666,0.28159649,102840.0,102830.0,0.22270576]
[1763027984667,0.70185102,102840.0,102830.0,0.22270576]
[1763027984887,0.72004919,102840.0,102830.0,0.22270576]
[1763027985074,0.72004919,102840.0,102830.0,0.24270576]
[1763027986255,0.72004919,102840.0,102830.0,0.22270576]
[1763027986667,0.72004919,102840.0,102830.0,0.24270576]
[1763027986990,0.72004919,102840.0,102830.0,0.02821]
[1763027987196,0.72004919,102840.0,102830.0,0.04821]
[1763027987439,0.70185102,102840.0,102830.0,0.04821]
[1763027987614,0.72003527,102840.0,102830.0,0.22270576]
[1763027987832,0.72003527,102840.0,102830.0,0.24270576]
[1763027988519,0.70185102,102840.0,102830.0,0.24270576]
[1763027989073,0.72002919,102840.0,102830.0,0.24270576]
[1763027991804,0.72002919,102840.0,102830.0,0.04821]
[1763027991973,0.72002919,102840.0,102830.0,0.24270576]
[1763027992168,0.5158285,102840.0,102830.0,0.28510576]
[1763027992359,0.27292736,102840.0,102830.0,0.28838576]
[1763027992565,0.27292736,102840.0,102830.0,0.30838576]
[1763027992775,0.46740421,102840.0,102830.0,0.30838576]
[1763027993952,0.41919982,102840.0,102830.0,0.30838576]
[1763027994151,0.22472297,102840.0,102830.0,0.28838576]
[1763027994352,0.22472297,102840.0,102830.0,0.30838576]
[1763027996004,0.41919982,102840.0,102830.0,0.30838576]
[1763027996622,0.22472297,102840.0,102830.0,0.28838576]
[1763027996824,0.22472297,102840.0,102830.0,0.30838576]
[1763027997143,0.41919982,102840.0,102830.0,0.30838576]
[1763027998058,0.91561119,102850.0,102840.0,0.19447685]
[1763027998254,0.67987704,102850.0,102840.0,0.26596685]
[1763027998453,0.48540175,102850.0,102840.0,0.26596685]
[1763027998660,0.46722297,102850.0,102840.0,0.26596685]
[1763027999272,0.46722297,102850.0,102840.0,0.24596685]
[1763027999273,0.24254665,102850.0,102840.0,0.24596685]
[1763027999475,0.24254665,102850.0,102840.0,0.26596685]
[1763027999680,0.46726962,102850.0,102840.0,0.26596685]
[1763027999887,0.24254665,102850.0,102840.0,0.26596685]
[1763028000090,0.24354665,102850.0,102840.0,0.26596685]
[1763028000324,0.00104665,102850.0,102840.0,0.49068982]
[1763028000572,4.665e-05,102850.0,102840.0,0.81368982]
[1763028000717,4.665e-05,102850.0,102840.0,0.58896685]
[1763028000938,4.665e-05,102850.0,102840.0,0.56896685]
[1763028001162,4.665e-05,102850.0,102840.0,0.58896685]
[1763028002410,4.665e-05,102850.0,102840.0,1.03841279]
[1763028002703,4.665e-05,102850.0,102840.0,1.01841279]
[1763028002896,4.665e-05,102850.0,102840.0,1.03841279]
[1763028003664,4.665e-05,102850.0,102840.0,1.04041279]
[1763028004469,4.665e-05,102850.0,102840.0,1.02041279]
[1763028004660,4.665e-05,102850.0,102840.0,1.04041279]
[1763028005085,4.665e-05,102850.0,102840.0,0.81568982]
[1763028005286,4.665e-05,102850.0,102840.0,0.59096685]
[1763028005582,4.665e-05,102850.0,102840.0,0.84310064]
[1763028005785,4.665e-05,102850.0,102840.0,0.81568982]
[1763028006330,4.665e-05,102850.0,102840.0,1.04041279]
[1763028006503,4.665e-05,102850.0,102840.0,1.02041279]
[1763028006709,4.665e-05,102850.0,102840.0,1.04041279]
[1763028009035,4.665e-05,102850.0,102840.0,1.02041279]
[1763028009236,4.665e-05,102850.0,102840.0,0.81568982]
[1763028009850,4.665e-05,102850.0,102840.0,1.02041279]
[1763028010054,4.665e-05,102850.0,102840.0,1.04041279]
[1763028010285,0.00024492,102860.0,102850.0,0.88862685]
[1763028010468,0.00024492,102860.0,102850.0,0.96159685]
[1763028010666,0.00024492,102860.0,102850.0,0.98159685]
[1763028011838,0.00024492,102860.0,102850.0,0.98359685]
[1763028012044,0.00024492,102860.0,102850.0,1.65776576]
[1763028012712,0.00024492,102860.0,102850.0,0.98359685]
[1763028013348,0.00024492,102860.0,102850.0,0.98559685]
[1763028014194,0.0002,102890.0,102880.0,0.66384718]
[1763028014393,0.00024666,102890.0,102880.0,0.73265718]
[1763028014550,0.00024666,102890.0,102880.0,0.53209421]
[1763028014757,0.00098117,102890.0,102880.0,0.53209421]
[1763028014972,0.00098117,102890.0,102880.0,0.30737124]
[1763028015752,0.00198117,102890.0,102880.0,0.30737124]
[1763028020879,0.00198117,102890.0,102880.0,0.75681718]
[1763028021462,0.00098117,102890.0,102880.0,0.75681718]
[1763028021865,0.00098117,102890.0,102880.0,0.53209421]
[1763028022675,0.00098117,102890.0,102880.0,0.75681718]
[1763028023318,0.00098117,102890.0,102880.0,0.75781718]
[1763028023546,0.00098117,102890.0,102880.0,0.75881718]
[1763028024953,0.00098117,102890.0,102880.0,0.6087489]
[1763028026397,0.0191158,102890.0,102880.0,0.6087489]
[1763028029197,0.0191158,102890.0,102880.0,1.23112656]
[1763028029613,0.00098117,102890.0,102880.0,1.23112656]
[1763028030517,0.00098117,102890.0,102880.0,0.63237124]
[1763028030717,0.00098117,102890.0,102880.0,1.23112656]
[1763028035788,0.00098117,102890.0,102880.0,1.26120436]
[1763028035989,0.00098117,102890.0,102880.0,1.27834956]
[1763028036195,0.00098117,102890.0,102880.0,1.24827176]
[1763028038062,0.00098117,102890.0,102880.0,1.24727176]
[1763028038649,0.00098117,102890.0,102880.0,1.25027176]
[1763028038890,0.00098117,102890.0,102880.0,1.24927176]
[1763028039226,0.00098117,102890.0,102880.0,1.25127176]
[1763028039812,0.00098117,102890.0,102880.0,1.35367176]
[1763028040013,0.00098117,102890.0,102880.0,1.25127176]
[1763028040238,0.00098117,102890.0,102880.0,0.65251644]
[1763028040441,0.00098117,102890.0,102880.0,1.25127176]
[1763028043564,0.01915738,102890.0,102880.0,1.25127176]
[1763028044553,0.00098117,102890.0,102880.0,1.25127176]
[1763028046889,0.00098117,102890.0,102880.0,1.20891176]
[1763028047052,0.00098117,102890.0,102880.0,1.25127176]
[1763028050333,0.00098117,102890.0,102880.0,1.20891176]
[1763028050538,0.00098117,102890.0,102880.0,1.25123176]
[1763028051139,0.00098117,102890.0,102880.0,0.70589517]
[1763028051357,0.00098117,102890.0,102880.0,1.30465049]
[1763028052793,0.0002,102900.0,102890.0,0.21438235]
[1763028052996,0.0002,102900.0,102890.0,2.91906781]
[1763028053308,0.0002,102900.0,102890.0,3.21844547]
[1763028053649,0.0002,102900.0,102890.0,3.18836767]
[1763028054080,0.0002,102900.0,102890.0,3.19036767]
[1763028054803,0.0002,102900.0,102890.0,3.19236767]
[1763028055884,0.0002,102900.0,102890.0,3.17236767]
[1763028056081,0.0002,102900.0,102890.0,0.29293235]
[1763028056325,0.0002,102900.0,102890.0,0.61231001]
[1763028056526,0.0002,102900.0,102890.0,0.93531001]
[1763028058355,0.00044478,102900.0,102890.0,0.93531001]
[1763028060011,0.00044478,102900.0,102890.0,0.91531001]
[1763028060223,0.00044478,102900.0,102890.0,0.93531001]
[1763028060439,0.00044478,102900.0,102890.0,0.63593235]
[1763028060783,0.00044478,102900.0,102890.0,0.93531001]
[1763028062667,0.00044478,102900.0,102890.0,3.21468767]
[1763028062909,0.00044478,102900.0,102890.0,3.23468767]
[1763028064493,0.00489655,102920.0,102910.0,0.53734457]
[1763028064701,0.00489655,102920.0,102910.0,0.90676223]
[1763028064702,0.00543264,102920.0,102910.0,0.90676223]
[1763028064906,0.00543264,102920.0,102910.0,0.93126223]
[1763028066664,0.00543264,102920.0,102910.0,0.93326223]
[1763028066870,0.00543264,102920.0,102910.0,0.64396237]
[1763028067198,0.00543264,102920.0,102910.0,1.23463989]
[1763028068053,0.97017155,102930.0,102920.0,0.51732568]
[1763028068389,0.97063807,102930.0,102920.0,1.188301]
[1763028068943,0.97088274,102930.0,102920.0,1.188301]
[1763028069384,0.97088274,102930.0,102920.0,1.189301]
[1763028070344,0.97088274,102930.0,102920.0,1.190301]
[1763028070571,0.97088274,102930.0,102920.0,1.189301]
[1763028070787,0.97088274,102930.0,102920.0,1.190301]
[1763028070995,0.97088274,102930.0,102920.0,1.192301]
[1763028071651,0.97088274,102930.0,102920.0,0.59354568]
[1763028071775,0.97088274,102930.0,102920.0,0.89292334]
[1763028072816,0.97088274,102930.0,102920.0,0.59354568]
[1763028073035,0.97088274,102930.0,102920.0,0.89292334]
[1763028075062,0.97088274,102930.0,102920.0,0.59354568]
[1763028075374,0.97088274,102930.0,102920.0,0.89292334]
[1763028075799,0.97088274,102930.0,102920.0,1.192301]
[1763028076211,0.97088274,102930.0,102920.0,1.172301]
[1763028076419,0.97088274,102930.0,102920.0,1.192301]
[1763028077390,0.97067076,102930.0,102920.0,1.192301]
[1763028077834,0.50620176,102930.0,102920.0,1.21571974]
[1763028078035,0.36387014,102930.0,102920.0,3.29304959]
[1763028078441,0.0002,102950.0,102940.0,1.13604325]
[1763028078594,0.0002,102950.0,102940.0,1.20608325]
[1763028078802,0.0002,102950.0,102940.0,1.23058325]
[1763028079175,0.00068922,102950.0,102940.0,0.93120559]
[1763028079982,0.00068922,102950.0,102940.0,1.23058325]
[1763028080197,0.00068922,102950.0,102940.0,1.23158325]
[1763028080399,0.00068922,102950.0,102940.0,0.63282793]
[1763028080533,0.00068922,102950.0,102940.0,0.59050793]
[1763028080762,0.00068922,102950.0,102940.0,0.61282793]
[1763028080942,0.00068922,102950.0,102940.0,0.63382793]
[1763028081565,0.00068922,102950.0,102940.0,0.61382793]
[1763028081769,0.00068922,102950.0,102940.0,0.63382793]
[1763028082197,0.00068922,102950.0,102940.0,0.63386793]
[1763028082844,0.00068922,102950.0,102940.0,0.61386793]
[1763028083052,0.00068922,102950.0,102940.0,0.63386793]
[1763028083252,0.19495828,102950.0,102940.0,0.61386793]
[1763028083468,0.00068922,102950.0,102940.0,0.63386793]
[1763028083745,0.19495828,102950.0,102940.0,0.61386793]
[1763028083961,0.00068922,102950.0,102940.0,0.63386793]
[1763028085165,0.00068922,102950.0,102940.0,0.61386793]
[1763028085367,0.00068922,102950.0,102940.0,0.63386793]
[1763028088287,0.4192553,102950.0,102940.0,0.61386793]
[1763028088474,0.4192553,102950.0,102940.0,0.63386793]
[1763028089187,0.00068922,102950.0,102940.0,0.63386793]
[1763028089371,0.00068922,102950.0,102940.0,0.83816495]
[1763028089570,0.00068922,102950.0,102940.0,0.85816495]
[1763028093659,0.00068922,102950.0,102940.0,1.08246197]
[1763028094249,0.00068922,102950.0,102940.0,1.06246197]
[1763028094448,0.00068922,102950.0,102940.0,1.08246197]
[1763028095969,0.00068922,102950.0,102940.0,0.63386793]
[1763028096172,0.00068922,102950.0,102940.0,0.85816495]
[1763028097947,0.22498624,102950.0,102940.0,0.61386793]
[1763028098137,0.22498624,102950.0,102940.0,0.63386793]
[1763028098469,0.00068922,102950.0,102940.0,0.63386793]
[1763028098792,0.22498624,102950.0,102940.0,0.63386793]
[1763028100004,0.00068922,102950.0,102940.0,0.63386793]
[1763028103439,0.44928326,102950.0,102940.0,0.61386793]
[1763028103592,0.22498624,102950.0,102940.0,0.61386793]
[1763028103788,0.00068922,102950.0,102940.0,0.61386793]
[1763028104030,0.00068922,102950.0,102940.0,0.63386793]
[1763028104227,0.00068922,102950.0,102940.0,0.63390793]
[1763028106616,0.19495828,102950.0,102940.0,0.61390793]
[1763028106821,0.00068922,102950.0,102940.0,0.61390793]
[1763028107041,0.00068922,102950.0,102940.0,0.63390793]
[1763028109062,0.00068922,102950.0,102940.0,0.85820495]
[1763028111025,0.00068922,102950.0,102940.0,0.63390793]
[1763028111225,0.00068922,102950.0,102940.0,0.85820495]
[1763028112677,0.00068922,102950.0,102940.0,0.63390793]
[1763028112897,0.00068922,102950.0,102940.0,0.85820495]
[1763028113222,0.00068922,102950.0,102940.0,0.85720495]
[1763028113702,0.00068922,102950.0,102940.0,0.86020495]
[1763028118507,0.00068922,102950.0,102940.0,1.08450197]
[1763028118851,0.00068922,102950.0,102940.0,1.08440197]
[1763028119451,0.00068922,102950.0,102940.0,0.63580793]
[1763028119666,0.00068922,102950.0,102940.0,1.08440197]
[1763028120269,0.00068922,102950.0,102940.0,0.63580793]
[1763028121600,0.19495828,102950.0,102940.0,0.63580793]
[1763028121815,0.86784934,102950.0,102940.0,0.05817]
[1763028122015,0.91605373,102950.0,102940.0,0.0464]
[1763028122217,0.91605373,102950.0,102940.0,0.00408]
[1763028122218,1.01245321,102950.0,102940.0,0.00408]
[1763028122426,0.91605373,102950.0,102940.0,0.04636]
[1763028122830,0.94521163,102950.0,102940.0,0.04336]
[1763028123199,0.94521163,102950.0,102940.0,0.04536]
[1763028123400,0.94521163,102950.0,102940.0,0.04436]
[1763028125547,0.94521163,102950.0,102940.0,0.06436]
[1763028125757,0.94521163,102950.0,102940.0,0.04436]
[1763028125981,0.94521163,102950.0,102940.0,0.00208]
[1763028126172,1.66152143,102950.0,102940.0,0.00208]
[1763028126383,2.0027035,102950.0,102940.0,0.00208]
[1763028126582,2.09910298,102950.0,102940.0,0.00208]
[1763028126969,2.09910298,102950.0,102940.0,8e-05]
[1763028127344,2.09910298,102950.0,102940.0,0.00108]
[1763028129020,2.14142298,102950.0,102940.0,0.00108]
[1763028130320,2.38392298,102950.0,102940.0,0.00108]
[1763028131570,2.39299882,102950.0,102940.0,0.00108]
[1763028131970,2.41390815,102950.0,102940.0,0.00108]
[1763028132328,2.39299882,102950.0,102940.0,0.00108]
[1763028132469,2.38392298,102950.0,102940.0,0.00108]
[1763028133554,1.69284985,102950.0,102940.0,0.00108]
[1763028135479,1.55303163,102950.0,102940.0,0.00108]
[1763028135677,0.51482057,102950.0,102940.0,0.05121]
[1763028135882,0.70995969,102950.0,102940.0,0.24549793]
[1763028136321,0.70995969,102950.0,102940.0,0.26549793]
[1763028136463,0.70995969,102950.0,102940.0,0.07121]
[1763028136659,0.70995969,102950.0,102940.0,0.05121]
[1763028136877,0.93425671,102950.0,102940.0,0.05121]
[1763028137285,0.93425671,102950.0,102940.0,0.02829]
[1763028138182,0.93425671,102950.0,102940.0,0.04829]
[1763028138540,0.93425671,102950.0,102940.0,0.01271]
[1763028138892,0.93425671,102950.0,102940.0,0.03271]
[1763028139823,0.93425671,102950.0,102940.0,0.01271]
[1763028141083,1.15855373,102950.0,102940.0,0.00108]
[1763028141287,1.83144479,102950.0,102940.0,0.00108]
[1763028141489,1.97016427,102950.0,102940.0,0.00108]
[1763028141986,1.99932418,102950.0,102940.0,0.00108]
[1763028146224,2.01747971,102950.0,102940.0,0.00108]
[1763028147727,2.34047971,102950.0,102940.0,0.00108]
[1763028148919,0.99469759,102950.0,102940.0,0.00108]
[1763028149077,1.59316825,102950.0,102940.0,0.00108]
[1763028151605,1.63658699,102950.0,102940.0,0.00108]
[1763028156958,1.63654699,102950.0,102940.0,0.00108]
[1763028159761,1.59426699,102950.0,102940.0,0.00108]
[1763028159984,1.63654699,102950.0,102940.0,0.00108]
[1763028161508,1.63657836,102950.0,102940.0,0.00108]
[1763028162144,1.59429836,102950.0,102940.0,0.00108]